fUSD/lending_fUSD_20250904
["ID","MTS","AMOUNT","RATE_DAILY","PERIOD"]
[383467156,1756947086899,-400.0,0.00022739,2]
[383467157,1756947086909,-400.0,0.00022739,2]
[383467158,1756947086919,-400.0,0.00022739,2]
[383467159,1756947086928,-400.0,0.00022739,2]
[383467160,1756947086937,-400.0,0.00022739,2]
[383467161,1756947086948,-400.0,0.00022739,2]
[383467162,1756947086957,-400.0,0.00022739,2]
[383467163,1756947086966,-400.0,0.00022739,2]
[383467164,1756947086976,-400.0,0.00022739,2]
[383467165,1756947086985,-225.52360184,0.00022739,2]
[383467166,1756947087738,-400.0,0.00022465,2]
[383467167,1756947087747,-174.47639816,0.00022739,2]
[383467168,1756947087757,-400.0,0.00022739,2]
[383467169,1756947087766,-140.12360184,0.00022739,2]
[383467170,1756947088502,-309.79332915,0.00021917,2]
[383467171,1756947088535,-218.96667085,0.00021917,2]
[383467172,1756947088551,-400.0,0.00021917,2]
[383467173,1756947088567,-528.76,0.00021917,2]
[383467174,1756947088581,-528.76,0.00021917,2]
[383467175,1756947088597,-528.76,0.00021917,2]
[383467176,1756947088612,-400.0,0.00021917,2]
[383467177,1756947088628,-528.76,0.00021917,2]
[383467178,1756947088643,-400.0,0.00021917,2]
[383467179,1756947088658,-400.0,0.00021917,2]
[383467180,1756947088674,-546.62,0.00022191,2]
[383467181,1756947088689,-400.0,0.00022191,2]
[383467182,1756947088704,-400.0,0.00022191,2]
[383467183,1756947088720,-400.0,0.00022191,2]
[383467184,1756947088734,-546.62,0.00022465,2]
[383467185,1756947088749,-400.0,0.00022465,2]
[383467186,1756947088763,-400.0,0.00022465,2]
[383467187,1756947088779,-259.87639816,0.00022739,2]
[383467188,1756947088794,-400.0,0.00022739,2]
[383467189,1756947088808,-400.0,0.00022739,2]
[383467190,1756947088823,-400.0,0.00022739,2]
[383467191,1756947088838,-400.0,0.00022739,2]
[383467192,1756947088852,-400.0,0.00022739,2]
[383467193,1756947088867,-400.0,0.00022739,2]
[383467194,1756947088882,-400.0,0.00022739,2]
[383467195,1756947088896,-400.0,0.00022739,2]
[383467196,1756947088912,-400.0,0.00022739,2]
[383467197,1756947088927,-168.04094076,0.00022739,2]
[383467198,1756947088942,-400.0,0.00022739,2]
[383467199,1756947088956,-400.0,0.00022739,2]
[383467200,1756947088971,-498.69,0.00022739,2]
[383467201,1756947088985,-400.0,0.00022739,2]
[383467202,1756947089000,-483.86,0.00022739,2]
[383467203,1756947089014,-400.0,0.00022739,2]
[383467204,1756947089029,-401.75458383,0.00022739,2]
[383467205,1756947089046,-2203.83,0.00022739,2]
[383467206,1756947089061,-3182.75,0.00022739,2]
[383467207,1756947089078,-400.0,0.00022739,2]
[383467208,1756947089094,-400.0,0.00022739,2]
[383467209,1756947089110,-400.0,0.00022739,2]
[383467210,1756947089129,-400.0,0.00022739,2]
[383467211,1756947089138,-400.0,0.00022739,2]
[383467212,1756947089148,-400.0,0.00022739,2]
[383467213,1756947089158,-400.0,0.00022739,2]
[383467214,1756947089169,-30.76077366,0.00022739,2]
[383467215,1756947091906,-302.45841464,0.00022739,2]
[383467216,1756947103686,209.4,0.00010737,2]
[383467217,1756947103768,209.4,0.00011302,2]
[383467218,1756947103862,209.4,0.00011868,2]
[383467219,1756947103987,209.4,0.00012433,2]
[383467220,1756947104050,209.4,0.00012998,2]
[383467221,1756947104254,209.4,0.00013563,2]
[383467222,1756947104307,209.4,0.00014128,2]
[383467223,1756947104358,209.4,0.00014693,2]
[383467224,1756947104402,209.4,0.00015258,2]
[383467225,1756947104496,209.4,0.00015823,2]
[383467226,1756947104552,209.4,0.00016389,2]
[383467227,1756947104625,209.4,0.00016954,2]
[383467228,1756947104683,209.4,0.00017519,2]
[383467229,1756947104753,209.4,0.00018084,2]
[383467230,1756947109664,-156.95366427,0.00018649,2]
[383467231,1756947116819,-52.44633573,0.00018649,2]
[383467232,1756947116845,-52.44633573,0.00019214,2]
[383467233,1756947116867,-95.10732854,0.00019214,2]
[383467238,1756947131463,-61.84633573,0.00019214,2]
[383467239,1756947131482,-61.84633573,0.00019355,2]
[383467240,1756947131497,-120.46289582,0.00019355,2]
[383467241,1756947139687,-12.69076845,0.00019355,2]
[383467242,1756947139754,-12.69076845,0.00019497,2]
[383467243,1756947139806,-223.07447737,0.00019497,2]
[383467247,1756947172648,-14.23475418,0.00019497,2]
[383467250,1756947213730,155.2,0.00013699,2]
[383467262,1756947907205,161.15050999,0.00013,5]
[383467263,1756947989061,168.39,0.00010032,2]
[383467264,1756947989497,168.39,0.00012039,2]
[383467265,1756947989710,168.39,0.00014045,2]
[383467266,1756947989995,168.39,0.00016052,2]
[383467267,1756947990228,168.39,0.00018058,2]
[383467312,1756948104638,994.0,0.000199,3]
[383467313,1756948166853,4810.51573899,0.0002,5]
[383467314,1756948173355,150.0,0.0001955,3]
[383467315,1756948209507,157.12,0.00013699,2]
[383467316,1756948232207,-707.0,0.000198,5]
[383467317,1756948232216,-6126.5274,0.00019896,2]
[383467318,1756948232226,-300.0,0.00020062,2]
[383467319,1756948232236,-1200.0,0.00020062,2]
[383467320,1756948232245,-300.0,0.00020063,2]
[383467321,1756948232254,-405.0,0.00020063,2]
[383467322,1756948232264,-1104.19593679,0.00020063,2]
[383467323,1756948232275,-202.70378713,0.00020064,2]
[383467324,1756948232285,-622.54793179,0.00020064,2]
[383467325,1756948232294,-500.0,0.00020064,2]
[383467326,1756948232304,-622.54793179,0.00020064,2]
[383467327,1756948232315,-622.54793179,0.00020064,2]
[383467328,1756948232325,-622.54793179,0.00020064,2]
[383467329,1756948232335,-500.0,0.00020064,2]
[383467330,1756948232345,-622.54793179,0.00020064,2]
[383467331,1756948232356,-622.54793179,0.00020064,2]
[383467332,1756948232365,-318.74571312,0.00020064,2]
[383467333,1756948232374,-622.54793179,0.00020064,2]
[383467334,1756948232383,-622.54793179,0.00020064,2]
[383467335,1756948232394,-622.54793179,0.00020064,2]
[383467336,1756948232403,-622.54793179,0.00020064,2]
[383467337,1756948232413,-622.54793179,0.00020064,2]
[383467338,1756948232422,-622.54793179,0.00020064,2]
[383467339,1756948232432,-622.54793179,0.00020064,2]
[383467340,1756948232441,-622.54793179,0.00020064,2]
[383467341,1756948232450,-622.54793179,0.00020064,2]
[383467342,1756948232459,-622.54793179,0.00020064,2]
[383467343,1756948232469,-622.54793179,0.00020064,2]
[383467344,1756948232478,-622.54793179,0.00020064,2]
[383467345,1756948232487,-622.54793179,0.00020064,2]
[383467346,1756948232497,-622.54793179,0.00020064,2]
[383467347,1756948232506,-622.54793179,0.00020064,2]
[383467348,1756948232515,-84.32059539,0.00020064,2]
[383467349,1756948232535,-538.2273364,0.00020064,2]
[383467350,1756948232545,-622.54793179,0.00020064,2]
[383467351,1756948232554,-622.54793179,0.00020064,2]
[383467352,1756948232563,-622.54793179,0.00020064,2]
[383467353,1756948232572,-622.54793179,0.00020064,2]
[383467354,1756948232581,-622.54793179,0.00020064,2]
[383467355,1756948232590,-622.54793179,0.00020064,2]
[383467357,1756948232599,-622.54793179,0.00020064,2]
[383467358,1756948232608,-622.54793179,0.00020064,2]
[383467359,1756948232617,-622.54793179,0.00020064,2]
[383467360,1756948232626,-622.54793179,0.00020064,2]
[383467361,1756948232636,-622.54793179,0.00020064,2]
[383467362,1756948232645,-622.54793179,0.00020064,2]
[383467363,1756948232654,-622.54793179,0.00020064,2]
[383467364,1756948232663,-622.54793179,0.00020064,2]
[383467365,1756948232672,-622.54793179,0.00020064,2]
[383467366,1756948232682,-622.54793179,0.00020064,2]
[383467367,1756948232691,-622.54793179,0.00020064,2]
[383467368,1756948232700,-622.54793179,0.00020064,2]
[383467369,1756948232710,-622.54793179,0.00020064,2]
[383467370,1756948232720,-622.54793179,0.00020064,2]
[383467371,1756948232729,-622.54793179,0.00020064,2]
[383467372,1756948232739,-622.54793179,0.00020064,2]
[383467373,1756948232748,-622.54793179,0.00020064,2]
[383467374,1756948232757,-622.54793179,0.00020064,2]
[383467375,1756948232767,-622.54793179,0.00020064,2]
[383467376,1756948232776,-622.54793179,0.00020064,2]
[383467377,1756948232785,-622.54793179,0.00020064,2]
[383467378,1756948232795,-622.54793179,0.00020064,2]
[383467379,1756948232805,-622.54793179,0.00020064,2]
[383467380,1756948232814,-622.54793179,0.00020064,2]
[383467381,1756948232823,-622.54793179,0.00020064,2]
[383467382,1756948232832,-622.54793179,0.00020064,2]
[383467383,1756948232842,-622.54793179,0.00020064,2]
[383467384,1756948232851,-622.54793179,0.00020064,2]
[383467385,1756948232861,-622.54793179,0.00020064,2]
[383467386,1756948232871,-622.54793179,0.00020064,2]
[383467387,1756948232880,-622.54793179,0.00020064,2]
[383467388,1756948232889,-622.54793179,0.00020064,2]
[383467389,1756948232900,-622.54793179,0.00020064,2]
[383467390,1756948232909,-622.54793179,0.00020064,2]
[383467391,1756948232918,-601.79633408,0.00020064,2]
[383467392,1756948232927,-601.79633408,0.00020064,2]
[383467393,1756948232936,-601.79633408,0.00020064,2]
[383467394,1756948232945,-601.79633408,0.00020064,2]
[383467395,1756948232954,-601.79633408,0.00020064,2]
[383467396,1756948232964,-601.79633408,0.00020064,2]
[383467397,1756948232974,-601.79633408,0.00020064,2]
[383467398,1756948232983,-601.79633408,0.00020064,2]
[383467399,1756948232993,-601.79633408,0.00020064,2]
[383467400,1756948233003,-601.79633408,0.00020064,2]
[383467401,1756948233012,-601.79633408,0.00020064,2]
[383467402,1756948233022,-601.79633408,0.00020064,2]
[383467403,1756948233033,-601.79633408,0.00020064,2]
[383467404,1756948233042,-601.79633408,0.00020064,2]
[383467405,1756948233052,-601.79633408,0.00020064,2]
[383467406,1756948233062,-601.79633408,0.00020064,2]
[383467407,1756948233072,-601.79633408,0.00020064,2]
[383467408,1756948233082,-601.79633408,0.00020064,2]
[383467409,1756948233091,-601.79633408,0.00020064,2]
[383467410,1756948233101,-601.79633408,0.00020064,2]
[383467411,1756948233111,-601.79633408,0.00020064,2]
[383467412,1756948233120,-601.79633408,0.00020064,2]
[383467413,1756948233131,-601.79633408,0.00020064,2]
[383467414,1756948233141,-601.79633408,0.00020064,2]
[383467415,1756948233151,-601.79633408,0.00020064,2]
[383467416,1756948233161,-601.79633408,0.00020064,2]
[383467417,1756948233170,-601.79633407,0.00020064,2]
[383467418,1756948233181,-168.39,0.00020065,2]
[383467419,1756948233194,-166.0,0.00020067,2]
[383467420,1756948233203,-166.0,0.00020067,2]
[383467421,1756948233213,-152.0,0.00020067,2]
[383467422,1756948233223,-154.0,0.00020067,2]
[383467423,1756948233232,-500.0,0.00020075,2]
[383467424,1756948233242,-610.0,0.00020079,2]
[383467425,1756948233252,-200.0,0.00020084,2]
[383467426,1756948233262,-866.84,0.00020086,2]
[383467427,1756948233271,-5066.4,0.00020101,2]
[383467428,1756948233281,-1005.37,0.00020115,2]
[383467429,1756948233290,-3652.26,0.00020165,2]
[383467430,1756948233299,-1229.79038268,0.00020201,2]
[383467431,1756948233333,-5646.30961732,0.00020201,2]
[383467432,1756948233343,-1346.78,0.00020244,2]
[383467433,1756948233620,-161.83,0.00020308,2]
[383467434,1756948233634,-687.08,0.00020348,2]
[383467435,1756948233644,-666.0,0.00020393,3]
[383467436,1756948233656,-405.65,0.00020422,2]
[383467437,1756948233671,-250.0,0.00020464,2]
[383467438,1756948233680,-160.0,0.00020481,7]
[383467439,1756948233690,-8233.79,0.00020495,2]
[383467440,1756948233699,-2678.24,0.00020499,2]
[383467441,1756948233709,-182.7489805,0.00020522,2]
[383467442,1756948233719,-10214.27415746,0.00020564,2]
[383467449,1756948238511,-1127.4,0.00020564,2]
[383467454,1756948238547,-2754.36467352,0.00020564,2]
[383467671,1756948240603,-326.1344847,0.00020564,2]
[383467938,1756948243258,-490.57598,0.00020564,2]
[383467940,1756948243270,-1006.68,0.00020564,2]
[383467942,1756948243281,-930.36,0.00020564,2]
[383467944,1756948243294,-1073.5,0.00020564,2]
[383467946,1756948243305,-546.38440035,0.00020564,2]
[383467948,1756948243317,-1200.69662182,0.00020564,2]
[383467951,1756948243337,-831.22710826,0.00020564,2]
[383467955,1756948243370,-4487.65723145,0.00020564,2]
[383467957,1756948243383,-4055.72534244,0.00020564,2]
[383467959,1756948243392,-825.55105272,0.00020672,2]
[383467972,1756948243509,-914.68606469,0.00020672,2]
[383467974,1756948243520,-479.8475744,0.00020672,2]
[383467976,1756948243532,-8652.46530819,0.00020672,2]
[383467978,1756948243542,-161.24,0.00020724,2]
[383467980,1756948243552,-1594.74073936,0.00020761,2]
[383467982,1756948243561,-200.0,0.00020762,2]
[383467984,1756948243570,-1409.12,0.00020783,2]
[383467986,1756948243583,-273.31646479,0.00020899,2]
[383467988,1756948243592,-532.55866188,0.00020899,2]
[383467990,1756948243602,-176.32668663,0.00020899,2]
[383467992,1756948243611,-183.56942907,0.00020899,2]
[383467994,1756948243619,-1834.59810736,0.000209,2]
[383467996,1756948243629,-157.12,0.00020951,2]
[383467998,1756948243638,-3000.0,0.00021055,2]
[383468000,1756948243647,-267.46074303,0.00021055,2]
[383468002,1756948243656,-1155.0,0.000211,2]
[383468004,1756948243667,-291.01612032,0.00021181,2]
[383468006,1756948243676,-261.01,0.00021181,2]
[383468008,1756948243686,-1834.59810733,0.00021323,2]
[383468010,1756948243695,-174.19,0.00021341,2]
[383468012,1756948243704,-540.98,0.00021341,2]
[383468014,1756948243713,-322.46483835,0.00021423,2]
[383468016,1756948243722,-405.65,0.00021443,2]
[383468018,1756948243731,-467.0,0.000215,2]
[383468020,1756948243740,-447.8125459,0.000215,2]
[383468022,1756948243749,-276.4725,0.00021612,2]
[383468024,1756948243758,-500.0,0.000217,7]
[383468026,1756948243767,-2100.0,0.000217,7]
[383468028,1756948243777,-900.0,0.00021712,2]
[383468029,1756948243786,-2400.0,0.00021712,2]
[383468031,1756948243795,-1834.59810733,0.00021747,2]
[383468033,1756948243804,-250.0,0.00021757,2]
[383468035,1756948243814,-1100.0,0.000218,7]
[383468037,1756948243823,-2987.69215685,0.000218,7]
[383468040,1756948243835,-1177.50064858,0.000218,7]
[383468042,1756948243846,-134.80719457,0.000218,7]
[383468044,1756948243855,-348.05730006,0.00021817,2]
[383468070,1756948244035,-9651.94269994,0.00021817,2]
[383468072,1756948244044,-5000.0,0.00021817,2]
[383468074,1756948244054,-1000.0,0.00021817,2]
[383468076,1756948244063,-2500.0,0.00021817,2]
[383468078,1756948244072,-248.78926001,0.00021817,2]
[383468080,1756948244085,-181.58561876,0.00021817,2]
[383468082,1756948244094,-420.0,0.00021844,2]
[383468084,1756948244104,-250.16,0.00021854,2]
[383468086,1756948244113,-250.0,0.00021885,2]
[383468088,1756948244122,-286.0,0.00021885,2]
[383468090,1756948244132,-195.0,0.00021885,2]
[383468092,1756948244141,-250.0,0.00021885,2]
[383468094,1756948244150,-164.92,0.0002189,2]
[383468095,1756948244159,-1700.0,0.000219,7]
[383468097,1756948244169,-6500.0,0.000219,7]
[383468099,1756948244179,-156.08587707,0.000219,2]
[383468101,1756948244188,-164.92,0.00021907,2]
[383468103,1756948244198,-164.92,0.00021907,2]
[383468105,1756948244207,-833.97,0.00021907,2]
[383468107,1756948244216,-805.76027006,0.00021917,2]
[383468309,1756948246295,-139.22449141,0.00021917,2]
[383468311,1756948246306,-400.0,0.00021917,2]
[383468313,1756948246315,-400.0,0.00021917,2]
[383468315,1756948246325,-402.71005924,0.00021917,2]
[383468317,1756948246335,-78.7154608,0.00021917,2]
[383468335,1756948246505,-321.2845392,0.00021917,2]
[383468337,1756948246515,-400.0,0.00021917,2]
[383468339,1756948246525,-400.0,0.00021917,2]
[383468341,1756948246534,-400.0,0.00021917,2]
[383468343,1756948246545,-400.0,0.00021917,2]
[383468345,1756948246554,-400.0,0.00021917,2]
[383468347,1756948246563,-400.0,0.00021917,2]
[383468349,1756948246573,-400.0,0.00021917,2]
[383468351,1756948246582,-400.0,0.00021917,2]
[383468353,1756948246592,-400.0,0.00021917,2]
[383468355,1756948246601,-400.0,0.00021917,2]
[383468357,1756948246610,-400.0,0.00021917,2]
[383468359,1756948246620,-379.52391752,0.00021917,2]
[383468361,1756948246629,-400.0,0.00021917,2]
[383468363,1756948246638,-400.0,0.00021917,2]
[383468366,1756948246648,-403.38889395,0.00021917,2]
[383468368,1756948246657,-400.0,0.00021917,2]
[383468370,1756948246667,-484.98454085,0.00021917,2]
[383468372,1756948246676,-158.974861,0.00021917,2]
[383468374,1756948246686,-400.0,0.00021917,2]
[383468375,1756948246695,-400.0,0.00021917,2]
[383468377,1756948246705,-400.0,0.00021917,2]
[383468380,1756948246714,-400.0,0.00021917,2]
[383468382,1756948246727,-400.0,0.00021917,2]
[383468384,1756948246737,-400.0,0.00021917,2]
[383468386,1756948246746,-400.0,0.00021917,2]
[383468388,1756948246756,-400.0,0.00021917,2]
[383468390,1756948246765,-160.661612,0.00021917,2]
[383468392,1756948246775,-155.447563,0.00021917,2]
[383468394,1756948246784,-400.0,0.00021917,2]
[383468396,1756948246795,-400.0,0.00021917,2]
[383468398,1756948246804,-400.0,0.00021917,2]
[383468400,1756948246813,-400.0,0.00021917,2]
[383468402,1756948246823,-233.97491819,0.00021917,2]
[383468404,1756948246832,-404.34478341,0.00021917,2]
[383468406,1756948246842,-400.0,0.00021917,2]
[383468408,1756948246851,-400.0,0.00021917,2]
[383468410,1756948246860,-400.0,0.00021917,2]
[383468412,1756948246869,-400.0,0.00021917,2]
[383468414,1756948246879,-400.0,0.00021917,2]
[383468415,1756948246888,-400.0,0.00021917,2]
[383468417,1756948246897,-168.61196,0.00021917,2]
[383468419,1756948246907,-400.0,0.00021917,2]
[383468421,1756948246917,-400.0,0.00021917,2]
[383468423,1756948246926,-400.0,0.00021917,2]
[383468424,1756948246935,-400.0,0.00021917,2]
[383468425,1756948246948,-400.0,0.00021917,2]
[383468426,1756948246957,-400.0,0.00021917,2]
[383468427,1756948246967,-400.0,0.00021917,2]
[383468428,1756948246977,-400.0,0.00021917,2]
[383468429,1756948246986,-400.0,0.00021917,2]
[383468431,1756948246995,-400.0,0.00021917,2]
[383468433,1756948247004,-400.0,0.00021917,2]
[383468434,1756948247014,-400.0,0.00021917,2]
[383468435,1756948247023,-401.26798642,0.00021917,2]
[383468436,1756948247033,-400.0,0.00021917,2]
[383468437,1756948247043,-400.0,0.00021917,2]
[383468438,1756948247052,-400.0,0.00021917,2]
[383468439,1756948247061,-479.73532125,0.00021917,2]
[383468440,1756948247071,-400.0,0.00021917,2]
[383468441,1756948247080,-400.0,0.00021917,2]
[383468443,1756948247091,-400.0,0.00021917,2]
[383468445,1756948247101,-400.0,0.00021917,2]
[383468447,1756948247111,-400.0,0.00021917,2]
[383468449,1756948247120,-400.0,0.00021917,2]
[383468451,1756948247130,-500.0,0.00021917,2]
[383468453,1756948247140,-500.0,0.00021917,2]
[383468455,1756948247150,-500.0,0.00021917,2]
[383468457,1756948247159,-400.0,0.00021917,2]
[383468459,1756948247169,-400.0,0.00021917,2]
[383468462,1756948247182,-400.0,0.00021917,2]
[383468464,1756948247191,-400.0,0.00021917,2]
[383468466,1756948247201,-400.0,0.00021917,2]
[383468468,1756948247211,-400.0,0.00021917,2]
[383468470,1756948247220,-400.0,0.00021917,2]
[383468472,1756948247230,-400.0,0.00021917,2]
[383468474,1756948247240,-400.0,0.00021917,2]
[383468476,1756948247250,-400.0,0.00021917,2]
[383468478,1756948247260,-400.0,0.00021917,2]
[383468480,1756948247269,-400.0,0.00021917,2]
[383468482,1756948247279,-400.0,0.00021917,2]
[383468484,1756948247288,-400.0,0.00021917,2]
[383468486,1756948247298,-400.0,0.00021917,2]
[383468488,1756948247307,-400.0,0.00021917,2]
[383468490,1756948247317,-400.0,0.00021917,2]
[383468492,1756948247327,-400.0,0.00021917,2]
[383468494,1756948247337,-400.0,0.00021917,2]
[383468496,1756948247347,-400.0,0.00021917,2]
[383468498,1756948247356,-478.96612457,0.00021917,2]
[383468500,1756948247365,-400.0,0.00021917,2]
[383468502,1756948247375,-400.0,0.00021917,2]
[383468504,1756948247385,-400.0,0.00021917,2]
[383468506,1756948247395,-401.88950815,0.00021917,2]
[383468509,1756948247407,-400.0,0.00021917,2]
[383468511,1756948247416,-400.0,0.00021917,2]
[383468513,1756948247426,-400.0,0.00021917,2]
[383468515,1756948247436,-400.0,0.00021917,2]
[383468517,1756948247446,-400.0,0.00021917,2]
[383468519,1756948247454,-400.0,0.00021917,2]
[383468521,1756948247464,-400.0,0.00021917,2]
[383468523,1756948247474,-400.0,0.00021917,2]
[383468525,1756948247484,-400.0,0.00021917,2]
[383468527,1756948247495,-400.0,0.00021917,2]
[383468529,1756948247505,-400.0,0.00021917,2]
[383468531,1756948247515,-400.0,0.00021917,2]
[383468533,1756948247524,-400.0,0.00021917,2]
[383468535,1756948247534,-400.0,0.00021917,2]
[383468537,1756948247543,-400.0,0.00021917,2]
[383468539,1756948247553,-400.0,0.00021917,2]
[383468541,1756948247562,-405.86347102,0.00021917,2]
[383468543,1756948247572,-400.0,0.00021917,2]
[383468545,1756948247583,-400.0,0.00021917,2]
[383468547,1756948247593,-400.0,0.00021917,2]
[383468549,1756948247603,-400.0,0.00021917,2]
[383468551,1756948247613,-400.0,0.00021917,2]
[383468553,1756948247622,-500.0,0.00021917,2]
[383468555,1756948247631,-400.0,0.00021917,2]
[383468557,1756948247642,-400.0,0.00021917,2]
[383468559,1756948247652,-400.0,0.00021917,2]
[383468561,1756948247661,-400.0,0.00021917,2]
[383468563,1756948247671,-400.0,0.00021917,2]
[383468565,1756948247681,-400.0,0.00021917,2]
[383468567,1756948247690,-400.0,0.00021917,2]
[383468569,1756948247700,-400.0,0.00021917,2]
[383468571,1756948247710,-400.0,0.00021917,2]
[383468573,1756948247719,-400.0,0.00021917,2]
[383468576,1756948247729,-400.0,0.00021917,2]
[383468578,1756948247739,-400.0,0.00021917,2]
[383468580,1756948247748,-400.0,0.00021917,2]
[383468582,1756948247758,-400.0,0.00021917,2]
[383468584,1756948247767,-404.09641057,0.00021917,2]
[383468586,1756948247777,-400.0,0.00021917,2]
[383468588,1756948247787,-400.0,0.00021917,2]
[383468590,1756948247796,-400.0,0.00021917,2]
[383468592,1756948247805,-926.17,0.00021917,2]
[383468594,1756948247815,-400.0,0.00021917,2]
[383468596,1756948247824,-400.0,0.00021917,2]
[383468598,1756948247833,-400.0,0.00021917,2]
[383468600,1756948247842,-400.0,0.00021917,2]
[383468602,1756948247851,-500.0,0.00021917,2]
[383468604,1756948247861,-500.0,0.00021917,2]
[383468606,1756948247870,-500.0,0.00021917,2]
[383468608,1756948247879,-500.0,0.00021917,2]
[383468609,1756948247890,-500.0,0.00021917,2]
[383468611,1756948247899,-500.0,0.00021917,2]
[383468614,1756948247909,-400.0,0.00021917,2]
[383468615,1756948247919,-500.0,0.00021917,2]
[383468618,1756948247929,-500.0,0.00021917,2]
[383468619,1756948247939,-400.0,0.00021917,2]
[383468622,1756948247949,-500.0,0.00021917,2]
[383468624,1756948247959,-400.0,0.00021917,2]
[383468626,1756948247969,-400.0,0.00021917,2]
[383468628,1756948247979,-400.0,0.00021917,2]
[383468630,1756948247989,-400.0,0.00021917,2]
[383468632,1756948247999,-400.0,0.00021917,2]
[383468634,1756948248010,-400.0,0.00021917,2]
[383468636,1756948248019,-400.0,0.00021917,2]
[383468638,1756948248029,-400.0,0.00021917,2]
[383468640,1756948248039,-400.0,0.00021917,2]
[383468642,1756948248049,-400.0,0.00021917,2]
[383468644,1756948248059,-400.0,0.00021917,2]
[383468646,1756948248069,-500.0,0.00021917,2]
[383468648,1756948248079,-400.0,0.00021917,2]
[383468651,1756948248098,-400.0,0.00021917,2]
[383468653,1756948248110,-500.0,0.00021917,2]
[383468655,1756948248120,-400.0,0.00021917,2]
[383468657,1756948248130,-400.0,0.00021917,2]
[383468659,1756948248139,-400.0,0.00021917,2]
[383468661,1756948248150,-400.0,0.00021917,2]
[383468663,1756948248160,-400.0,0.00021917,2]
[383468665,1756948248169,-400.0,0.00021917,2]
[383468667,1756948248179,-400.0,0.00021917,2]
[383468669,1756948248189,-400.0,0.00021917,2]
[383468671,1756948248199,-400.0,0.00021917,2]
[383468673,1756948248209,-500.0,0.00021917,2]
[383468675,1756948248218,-500.0,0.00021917,2]
[383468677,1756948248228,-500.0,0.00021917,2]
[383468678,1756948248238,-500.0,0.00021917,2]
[383468680,1756948248248,-500.0,0.00021917,2]
[383468682,1756948248258,-400.0,0.00021917,2]
[383468683,1756948248267,-402.33030272,0.00021917,2]
[383468685,1756948248276,-400.0,0.00021917,2]
[383468687,1756948248286,-400.0,0.00021917,2]
[383468689,1756948248297,-400.0,0.00021917,2]
[383468691,1756948248307,-400.0,0.00021917,2]
[383468692,1756948248317,-400.0,0.00021917,2]
[383468694,1756948248327,-400.0,0.00021917,2]
[383468696,1756948248336,-400.0,0.00021917,2]
[383468697,1756948248346,-400.0,0.00021917,2]
[383468699,1756948248355,-400.0,0.00021917,2]
[383468701,1756948248365,-400.0,0.00021917,2]
[383468703,1756948248374,-400.0,0.00021917,2]
[383468704,1756948248384,-400.0,0.00021917,2]
[383468736,1756948248751,-400.0,0.00021917,2]
[383468738,1756948248762,-400.0,0.00021917,2]
[383468740,1756948248771,-400.0,0.00021917,2]
[383468742,1756948248781,-400.0,0.00021917,2]
[383468744,1756948248790,-400.0,0.00021917,2]
[383468745,1756948248800,-400.0,0.00021917,2]
[383468747,1756948248810,-400.0,0.00021917,2]
[383468749,1756948248820,-400.0,0.00021917,2]
[383468751,1756948248830,-400.0,0.00021917,2]
[383468753,1756948248840,-400.0,0.00021917,2]